bitfinex/quotes_ETHUSD_20260119
["timestamp","ask_amount","ask_price","bid_price","bid_amount"]
[1768820916001,0.00280072,3217.0,3216.4,0.52779587]
[1768820916168,0.93841053,3217.0,3216.5,1.35567875]
[1768820916370,0.93841053,3217.0,3216.6,0.513]
[1768820918983,3.11130265,3217.0,3216.6,0.513]
[1768820919191,0.95183483,3216.9,3216.6,0.513]
[1768820923212,0.95183483,3216.8,3216.6,0.513]
[1768820925607,0.95463555,3217.0,3216.6,0.513]
[1768820927316,4.0631259,3217.0,3216.6,0.513]
[1768820927493,0.95183483,3216.9,3216.6,0.513]
[1768820929530,0.95183483,3216.8,3216.6,0.513]
[1768820930843,0.95183483,3216.8,3216.6,0.514]
[1768820932108,0.95463555,3217.0,3216.6,1.04179587]
[1768820932434,0.95463555,3217.0,3216.6,0.514]
[1768820939752,0.94658712,3216.9,3216.6,0.514]
[1768820940554,0.94658712,3216.9,3216.6,0.001]
[1768820940765,0.94658712,3216.8,3216.6,0.001]
[1768820947162,1.66321629,3216.9,3216.6,0.001]
[1768820947365,0.94658712,3216.9,3216.6,0.001]
[1768820948965,4.05519006,3216.9,3216.6,0.001]
[1768820953481,0.94658712,3216.8,3216.6,0.001]
[1768820955581,0.00280072,3217.0,3216.6,0.001]
[1768820960786,0.94938784,3217.0,3216.6,0.001]
[1768820964998,0.002,3216.7,3216.6,0.001]
[1768820967066,0.00280072,3217.0,3216.6,0.001]
[1768820968509,0.00280072,3217.0,3216.6,0.3633034]
[1768820969271,1.00077873,3217.3,3216.7,4.64187025]
[1768820969598,1.00077873,3217.3,3216.6,3.47295956]
[1768820970696,0.00280064,3217.9,3217.0,4.64187025]
[1768820970697,0.99797801,3217.8,3217.0,4.64187025]
[1768820970879,0.99797801,3217.8,3217.4,0.02218919]
[1768820971078,0.00280064,3217.9,3217.4,0.33530214]
[1768820971403,0.00280064,3217.9,3217.4,3.44339028]
[1768820971569,0.00280064,3217.9,3217.4,0.33530214]
[1768820972169,0.00280064,3217.9,3217.5,0.513]
[1768820972572,1.00077865,3217.9,3217.5,0.513]
[1768820973706,0.99797801,3217.8,3217.4,0.02218919]
[1768820974000,0.99797801,3217.8,3217.1,0.513]
[1768820974001,0.99797801,3217.5,3217.1,0.513]
[1768820977202,0.99997801,3217.2,3216.6,0.0018008]
[1768820977802,0.99797801,3217.0,3216.6,0.0018008]
[1768820978008,3.10838954,3217.1,3216.6,0.53698999]
[1768820978206,0.99797801,3217.0,3216.6,0.0018008]
[1768820979603,4.10650784,3217.0,3216.6,0.0018008]
[1768820981498,4.10183973,3217.0,3216.6,0.0018008]
[1768820982516,0.9933099,3217.0,3216.6,0.0018008]
[1768820983511,4.10180993,3217.0,3216.6,0.0018008]
[1768820984013,0.9933099,3216.9,3216.6,0.0018008]
[1768820986211,4.10196239,3216.9,3216.6,0.0018008]
[1768820987108,0.9933099,3216.9,3216.6,0.0018008]
[1768820987310,0.9953099,3217.2,3216.6,0.53698999]
[1768820988415,0.9953099,3217.2,3216.6,3.64585974]
[1768820989521,0.0008008,3217.6,3216.6,3.64585974]
[1768820989522,0.9933099,3218.1,3217.3,0.53318919]
[1768820989818,0.9933099,3218.1,3217.5,0.53318919]
[1768820990187,0.9933099,3218.0,3217.5,0.53318919]
[1768820990388,0.99611054,3217.9,3217.4,8.25988444]
[1768820991119,0.99611054,3217.9,3217.4,8.79307363]
[1768820994421,0.99611054,3217.9,3217.4,11.90117333]
[1768820994619,0.99611054,3217.9,3217.5,1.19011733]
[1768820995227,0.99611054,3217.9,3217.5,4.2980943]
[1768820995920,0.00280064,3217.9,3217.6,0.53318919]
[1768820996086,0.00280064,3217.9,3217.5,4.2980943]
[1768820996292,0.96371563,3217.9,3217.5,1.19011733]
[1768820996492,0.96371563,3217.9,3217.6,0.99832074]
[1768820998203,0.96371563,3217.9,3217.4,3.6210804]
[1768821001392,0.96371563,3217.9,3217.6,0.001]
[1768821001736,0.96371531,3218.3,3217.7,0.53318919]
[1768821001932,0.96371531,3218.3,3217.6,0.53418919]
[1768821002092,0.96371547,3218.8,3217.8,0.53038887]
[1768821002296,0.96091499,3218.9,3218.4,0.53118943]
[1768821002513,0.96091499,3218.9,3218.5,0.512]
[1768821003191,0.96091499,3218.8,3218.0,0.53118943]
[1768821003398,0.96171555,3218.8,3218.1,1.04318943]
[1768821003615,0.96171555,3218.8,3218.1,4.15052187]
[1768821004121,0.96171555,3218.8,3218.2,5.17000991]
[1768821004541,0.96171555,3218.8,3218.3,0.53118943]
[1768821005755,0.96171555,3218.8,3218.1,0.512]
[1768821006116,3.10756074,3218.8,3218.1,0.512]
[1768821006444,0.96091499,3218.7,3218.2,0.53118943]
[1768821007249,0.96091499,3218.7,3218.2,3.63850743]
[1768821008050,0.96091499,3218.7,3218.2,0.53118943]
[1768821008652,0.96091499,3218.7,3218.2,3.63851278]
[1768821010049,0.96091499,3218.7,3218.2,3.10732335]
[1768821010235,0.96091499,3218.7,3218.2,4.15051278]
[1768821010420,0.00080056,3218.8,3218.3,0.53118943]
[1768821010750,0.96171555,3218.8,3218.3,0.53118943]
[1768821011547,0.96171555,3218.8,3218.2,3.61932335]
[1768821011843,0.96171555,3218.8,3218.2,1.04318943]
[1768821012747,0.96091499,3218.7,3218.3,0.512]
[1768821013120,0.96091499,3218.7,3218.2,0.512]
[1768821014145,0.96291499,3218.5,3218.2,0.512]
[1768821014667,0.96291499,3218.5,3217.9,0.0008004]
[1768821014867,0.96291499,3218.5,3215.6,14.50180184]
[1768821014868,0.96091499,3218.4,3217.5,0.51280072]
[1768821015166,0.96091499,3218.2,3217.5,0.51280072]
[1768821016567,3.10742361,3218.2,3217.5,0.51280072]
[1768821016743,3.10742361,3218.2,3217.5,0.00080072]
[1768821016744,0.96091499,3218.1,3217.5,0.00080072]
[1768821018558,0.96091499,3218.1,3217.2,0.00080088]
[1768821018559,6.21504038,3218.0,3217.2,0.00080088]
[1768821018763,0.96171571,3217.9,3217.2,0.00080088]
[1768821018967,0.96091499,3217.7,3217.2,0.00080088]
[1768821020565,3.10788333,3217.7,3217.2,0.00080088]
[1768821020854,0.96091499,3217.6,3217.2,0.00080088]
[1768821022284,0.96091499,3217.6,3216.9,0.00180088]
[1768821022483,0.96171587,3217.6,3216.9,0.00180088]
[1768821022683,0.99687483,3217.2,3216.9,0.00180088]
[1768821024990,0.99687483,3217.1,3216.9,0.00180088]
[1768821025689,0.99687483,3217.1,3216.6,0.0018008]
[1768821026392,0.99687483,3217.1,3216.6,0.53819311]
[1768821027292,0.00080088,3217.3,3216.7,0.53639231]
[1768821027501,0.00080088,3217.3,3216.8,0.53639231]
[1768821028074,0.00080088,3217.6,3217.0,0.53639231]
[1768821028674,3.10871428,3217.6,3217.0,0.53639231]
[1768821028994,0.94687483,3217.5,3217.0,0.53639231]
[1768821029493,0.94687483,3217.5,3216.9,0.51280096]
[1768821029494,0.00080088,3217.6,3217.1,3.69478185]
[1768821029799,0.00080088,3217.6,3217.2,0.58639231]
[1768821029970,0.002,3217.7,3217.3,0.58559143]
[1768821032614,0.002,3217.7,3217.5,0.58559143]
[1768821033173,0.00080072,3217.9,3217.5,0.58559143]
[1768821034711,0.00080072,3217.9,3217.5,3.6935219]
[1768821036914,0.9683406,3217.9,3217.5,3.6935219]
[1768821037113,0.9683406,3217.9,3217.2,3.99055414]
[1768821037321,0.9683406,3217.9,3217.3,0.39905541]
[1768821037923,0.9683406,3217.9,3217.3,3.50724832]
[1768821038432,0.9683406,3217.9,3217.3,3.50720822]
[1768821038579,0.002,3217.6,3217.3,3.50720822]
[1768821039595,0.96174555,3217.6,3217.3,3.50720822]
[1768821039814,0.96174555,3217.6,3217.4,0.49750788]
[1768821042239,0.002,3217.6,3217.4,0.49750788]
[1768821044030,0.96174555,3217.6,3217.4,0.49750788]
[1768821045322,0.00280072,3217.9,3217.4,3.60557995]
[1768821045522,0.96254627,3217.9,3217.4,3.60557995]
[1768821046246,0.00280072,3217.9,3217.5,0.94160004]
[1768821046453,0.00280072,3217.9,3217.6,0.94160004]
[1768821046849,0.00280072,3217.9,3217.5,0.360558]
[1768821047043,0.96254627,3217.9,3217.5,0.94160004]
[1768821049063,0.96254627,3217.9,3217.2,0.942401]
[1768821049253,0.96254627,3217.9,3217.3,4.56173011]
[1768821050526,0.96254627,3217.9,3217.3,1.45360004]
[1768821050726,0.96254627,3217.9,3217.6,0.001]
[1768821050974,0.40980055,3217.9,3217.6,0.001]
[1768821051124,0.95974555,3217.8,3217.6,0.001]
[1768821069692,0.95974555,3217.8,3217.2,0.00080096]
[1768821069987,0.94572637,3217.7,3217.2,0.00080096]
[1768821071796,0.94572637,3217.5,3217.2,0.00080096]
[1768821073654,0.94572637,3217.3,3216.9,0.00080096]
[1768821076604,4.05401929,3217.2,3216.9,0.00080096]
[1768821076800,3.10829292,3217.2,3216.9,0.00080096]
[1768821077009,0.94572637,3217.1,3216.9,0.00080096]
[1768821086120,0.94572637,3217.1,3216.6,0.91069343]
[1768821086121,0.95994971,3217.0,3216.6,0.0018008]
[1768821089932,0.95994971,3217.0,3216.6,0.97194593]
[1768821094012,4.06845208,3217.0,3216.6,0.0018008]
[1768821094530,0.95994971,3217.0,3216.6,0.0018008]
[1768821095032,4.06847647,3217.0,3216.6,0.0018008]
[1768821096640,0.95994971,3217.0,3216.6,0.0018008]
[1768821097146,0.95994971,3216.9,3216.6,0.0018008]
[1768821098303,4.06853261,3216.9,3216.6,0.0018008]
[1768821099206,0.97251136,3216.8,3216.6,0.0018008]
[1768821100834,0.97251136,3216.7,3216.6,0.0018008]
[1768821101613,0.97251136,3216.7,3216.3,0.512]
[1768821102352,4.08129286,3216.7,3216.3,1.43202743]
[1768821103945,3.82777394,3216.7,3216.3,0.512]
[1768821104106,0.97251136,3216.6,3216.2,0.00080008]
[1768821104306,3.108939,3216.6,3216.2,0.00080008]
[1768821104519,0.97251136,3216.5,3216.2,0.00080008]
[1768821106936,4.08152443,3216.5,3216.2,0.00080008]
[1768821107936,0.97251136,3216.4,3216.2,0.00080008]
[1768821108140,0.97251136,3216.4,3215.9,0.00080112]
[1768821108344,0.97251136,3216.0,3215.6,0.00180184]
[1768821108647,0.97251136,3215.8,3215.1,1.27158797]
[1768821108810,6.21909884,3215.9,3215.1,1.27158797]
[1768821108811,0.97251136,3215.6,3215.1,1.27158797]
[1768821109213,0.00080216,3215.7,3215.2,0.92002743]
[1768821114133,0.918826,3215.7,3215.2,0.92002743]
[1768821116048,4.02857964,3215.7,3215.2,0.92002743]
[1768821117381,7.13833328,3215.7,3215.2,0.92002743]
[1768821117726,0.91802384,3215.6,3215.2,0.92002743]
[1768821118169,4.02790968,3215.6,3215.2,0.92002743]
[1768821118336,3.10988584,3215.6,3215.1,0.513]
[1768821118527,3.10988584,3215.6,3215.2,0.94927527]
[1768821118857,4.02790968,3215.6,3215.2,0.94927527]
[1768821119759,0.91802384,3215.6,3215.2,0.94927527]
[1768821120062,4.02790051,3215.6,3215.2,0.94927527]
[1768821120571,0.91802384,3215.5,3214.5,0.00080184]
[1768821120773,0.91802384,3215.3,3214.6,0.59966451]
[1768821121958,0.002802,3215.4,3214.6,0.59966451]
[1768821122260,0.002802,3215.4,3214.7,0.59966451]
[1768821122472,0.92082584,3215.4,3214.7,0.59966451]
[1768821122986,4.03087879,3215.4,3214.7,0.59966451]
[1768821123573,0.002802,3215.4,3214.7,0.59966451]
[1768821123772,0.92082584,3215.4,3214.8,0.59966451]
[1768821124263,0.002802,3215.4,3214.8,0.59966451]
[1768821124461,3.82372127,3215.6,3214.8,0.59966451]
[1768821124782,0.00080184,3216.0,3215.4,0.59966451]
[1768821124960,0.91882568,3216.0,3215.4,0.59966451]
[1768821125788,4.02834311,3216.0,3215.4,0.59966451]
[1768821126364,0.91882568,3216.0,3215.4,0.59966451]
[1768821126663,4.02828282,3216.0,3215.4,0.59966451]
[1768821127093,0.00080184,3216.0,3215.4,0.59966451]
[1768821127417,4.028292,3216.0,3215.4,0.59966451]
[1768821128597,0.91882568,3216.0,3215.4,0.59966451]
[1768821130697,4.02829862,3216.0,3215.4,0.59966451]
[1768821130997,3.11027478,3216.0,3215.4,0.59966451]
[1768821131299,4.02829862,3216.0,3215.4,0.59966451]
[1768821132413,0.91802384,3215.9,3215.4,0.59966451]
[1768821133002,0.91802384,3215.9,3215.7,0.001]
[1768821133586,1.26932664,3215.9,3215.7,0.001]
[1768821138492,0.3513028,3215.9,3215.7,0.001]
[1768821138812,0.00280184,3216.0,3215.7,0.001]
[1768821139613,3.11225801,3216.0,3215.7,0.001]
[1768821141108,0.00280184,3216.0,3215.7,0.001]
[1768821143112,0.95933669,3216.0,3215.7,0.001]
[1768821145538,4.06883838,3216.0,3215.7,0.001]
[1768821145736,0.95653485,3215.9,3215.7,0.001]
[1768821153923,3.83012407,3216.0,3215.7,0.001]
[1768821154313,4.78665892,3216.0,3215.7,0.001]
[1768821156407,0.95653485,3215.9,3215.7,0.001]
[1768821156831,3.83012407,3216.0,3215.7,0.001]
[1768821157634,4.78665892,3216.0,3215.7,0.001]
[1768821163227,0.72062238,3216.0,3215.7,0.60066451]
[1768821164319,3.83009909,3216.0,3215.7,0.60066451]
[1768821164630,3.83009909,3216.0,3215.7,0.001]
[1768821165358,0.72062238,3216.0,3215.7,0.001]
[1768821165653,4.82337596,3216.0,3215.7,0.001]
[1768821172451,0.99329649,3215.9,3215.7,0.001]
[1768821172951,4.10284985,3215.9,3215.7,0.001]
[1768821173156,3.10955336,3215.9,3215.7,0.001]
[1768821173453,0.90723954,3215.8,3215.7,0.001]
[1768821174556,4.7373587,3216.0,3215.7,0.001]
[1768821174965,3.83011916,3216.0,3215.7,0.001]
[1768821175119,0.90723954,3215.9,3215.7,0.001]
[1768821178464,0.00080096,3217.6,3215.8,0.59966451]
[1768821178669,0.91004034,3217.0,3216.4,0.59966451]
[1768821178823,0.91004034,3217.0,3216.5,1.11266451]
[1768821179022,0.91004034,3217.0,3216.6,0.513]
[1768821179740,0.91004034,3217.0,3216.6,1.11266451]
[1768821179936,0.0028008,3217.0,3216.6,1.11266451]
[1768821180341,0.0028008,3217.0,3216.7,0.59966451]
[1768821181766,0.91004034,3217.0,3216.5,0.59966451]
[1768821182745,0.91004034,3217.0,3216.6,0.59966451]
[1768821190279,0.91004034,3217.0,3216.6,3.70851937]
[1768821190463,0.0028008,3217.0,3216.6,3.70851937]
[1768821190647,0.0028008,3217.0,3216.6,0.59966451]
[1768821192378,0.002,3216.7,3216.6,0.59966451]
[1768821192576,0.002,3216.7,3216.6,1.0640408]
[1768821199588,0.002,3216.7,3216.6,0.46437629]
[1768821200302,0.91004026,3217.9,3217.2,0.00080104]
[1768821200510,0.90723954,3217.8,3217.2,0.00080104]
[1768821200665,0.90723954,3217.6,3216.9,0.00080104]
[1768821200973,0.90804058,3217.6,3216.9,0.00080104]
[1768821201301,0.90804058,3217.6,3216.9,0.60126659]
[1768821204282,0.90804058,3217.6,3217.0,3.70895171]
[1768821205480,0.90804058,3217.6,3217.0,0.60046555]
[1768821206417,0.90804058,3217.6,3217.0,3.70891583]
[1768821207100,0.513,3217.5,3217.0,0.60046555]
[1768821207305,0.513,3217.5,3217.1,0.60046555]
[1768821209584,0.513,3217.5,3217.1,3.70883726]
[1768821210480,0.513,3217.5,3217.1,4.3906581]
[1768821210815,0.00080104,3217.6,3217.3,0.60046555]
[1768821211701,0.00080104,3217.6,3217.4,0.60046555]
[1768821214915,0.94240909,3217.6,3217.2,0.60046555]
[1768821215216,0.94240909,3217.6,3217.1,3.70883508]
[1768821215394,0.93240909,3217.6,3217.2,0.61046563]
[1768821216511,0.94160805,3217.8,3217.2,3.71875614]
[1768821216718,0.94160805,3217.8,3217.2,0.61046563]
[1768821216917,0.94160805,3217.8,3217.2,3.71875508]
[1768821217689,0.002,3217.3,3217.2,3.71875508]
[1768821217889,0.002,3217.6,3217.2,4.46965964]
[1768821220722,0.002,3217.6,3217.2,1.36137019]
[1768821220894,0.002,3217.6,3217.2,0.61046563]
[1768821223129,0.002,3217.6,3217.2,3.71875634]
[1768821224017,0.002,3217.6,3217.2,0.61046563]
[1768821226434,0.002,3217.6,3217.2,3.71875722]
[1768821228327,0.002,3217.6,3217.2,0.61046563]
[1768821229730,0.98855349,3217.6,3217.2,0.00080112]
[1768821230425,0.002,3217.3,3217.2,0.00080112]
[1768821230732,0.98855349,3217.6,3217.2,0.37268357]
[1768821231031,0.98855349,3217.6,3217.2,0.00080112]
[1768821232104,0.98855349,3217.6,3217.2,3.10908291]
[1768821232306,0.98855349,3217.6,3217.2,0.00080112]
[1768821242558,0.002,3217.3,3217.2,0.00080112]
[1768821242757,0.90056837,3217.5,3217.2,0.00080112]
[1768821246672,0.002,3217.6,3217.2,0.00080112]
[1768821246964,0.002,3217.6,3217.2,0.9591507]
[1768821247172,0.002,3217.6,3217.2,1.67675902]
[1768821248346,0.90256837,3217.6,3217.2,1.67675902]
[1768821249377,0.90256837,3217.6,3217.2,4.78502839]
[1768821250674,0.002,3217.6,3217.2,3.82667881]
[1768821250979,0.90056837,3217.8,3217.3,0.95834958]
[1768821251275,0.90056837,3217.8,3217.4,0.47850284]
[1768821253544,0.90056837,3217.8,3217.2,1.67675902]
[1768821253746,0.90056837,3217.8,3217.2,4.78503999]
[1768821254076,0.90056837,3217.8,3217.5,0.001]
[1768821254575,0.90256837,3217.8,3217.5,0.001]
[1768821256668,0.90256837,3217.8,3217.2,0.00080112]
[1768821260561,0.90256837,3217.8,3217.2,0.40755364]
[1768821261052,0.90256837,3217.8,3217.3,0.95834958]
[1768821264116,0.002,3217.8,3217.3,0.95834958]
[1768821265315,0.002,3217.8,3217.3,4.06654438]
[1768821265510,0.002,3217.8,3217.4,0.95325776]
[1768821267206,0.002,3217.8,3217.5,0.001]
[1768821272717,0.952994,3217.8,3217.5,0.001]
[1768821280915,0.002,3217.8,3217.5,0.001]
[1768821291629,0.95371142,3217.8,3217.5,0.001]
[1768821294411,0.002,3217.8,3217.5,0.001]
[1768821296820,0.90420368,3217.8,3217.5,0.001]
[1768821301445,0.51580072,3217.9,3217.6,0.92833751]
[1768821301623,0.51580073,3218.9,3218.4,0.92833751]
[1768821301814,0.51580073,3218.9,3218.5,0.92833751]
[1768821302015,1.41520368,3219.0,3218.5,0.92833751]
[1768821302444,0.68577474,3219.0,3218.5,0.92833751]
[1768821302750,0.513,3219.0,3218.5,0.92833751]
[1768821303043,0.0008,3219.4,3219.0,0.92833751]
[1768821303344,0.8579345,3219.4,3219.0,0.92833751]
[1768821303512,0.8579345,3219.4,3218.8,4.0350126]
[1768821303712,0.8579345,3219.4,3218.9,3.10664363]
[1768821305344,0.8579345,3219.4,3218.9,0.92833751]
[1768821306729,0.513,3219.5,3218.9,0.92833751]
[1768821306926,0.513,3219.5,3219.1,0.92833751]
[1768821307128,0.0008,3219.7,3219.1,0.92833751]
[1768821307948,0.0008,3219.7,3219.1,4.03478693]
[1768821308622,0.0008,3219.7,3219.2,0.92833751]
[1768821309444,0.0008,3219.7,3219.0,4.03566754]
[1768821309856,0.0008,3219.7,3219.1,3.1064468]
[1768821310044,0.0008,3219.7,3219.0,4.03566199]
[1768821310347,0.0008,3219.7,3219.1,3.10645353]
[1768821310554,0.0008,3219.7,3219.0,4.0356619]
[1768821311556,0.0008,3219.7,3219.1,4.03476932]
[1768821312341,0.0008,3219.7,3219.2,0.92833751]
[1768821314577,0.0008,3219.7,3219.2,0.001]
[1768821314578,0.90220368,3219.6,3219.2,0.001]
[1768821314872,0.002,3219.4,3219.2,0.001]
[1768821315877,3.61859117,3220.0,3219.2,0.001]
[1768821315878,1e-08,3220.5,3219.3,0.92833751]
[1768821316079,0.03273399,3220.9,3220.3,0.00080016]
[1768821317471,0.03273399,3220.9,3220.3,0.92913767]
[1768821319452,0.03273399,3220.8,3220.3,0.00080016]
[1768821323480,0.00080016,3220.4,3219.6,0.94571846]
[1768821323666,0.03113367,3220.3,3219.6,0.94571846]
[1768821324062,0.03113367,3220.3,3219.6,4.05165992]
[1768821324458,0.03113367,3220.3,3219.7,0.9465187]
[1768821324677,0.03193383,3220.4,3219.7,0.9465187]
[1768821326975,0.03193383,3220.4,3220.0,0.001]
[1768821330584,0.03113367,3220.3,3220.0,0.001]
[1768821332967,0.03113367,3220.3,3219.7,0.00080024]
[1768821333389,0.00080016,3220.4,3219.8,0.94571846]
[1768821333696,0.03093383,3220.4,3219.8,0.94571846]
[1768821334376,0.03093383,3220.4,3219.9,0.94571846]
[1768821339103,0.03093383,3220.4,3220.2,0.001]
[1768821349440,0.03093383,3220.4,3219.7,3.10664368]
[1768821349632,0.02913367,3220.3,3219.7,4.08466346]
[1768821350120,0.02913367,3220.3,3219.8,0.97801978]
[1768821350492,0.02913367,3220.3,3219.8,4.08379494]
[1768821350703,0.002,3220.1,3219.8,4.08379494]
[1768821351203,0.002,3220.1,3219.8,0.97801978]
[1768821360197,0.002,3220.1,3219.7,0.00080024]
[1768821360402,0.002,3220.1,3219.3,0.00080008]
[1768821360403,0.02913367,3219.9,3219.3,0.00080008]
[1768821362111,0.02913367,3219.8,3219.3,0.00080008]
[1768821362317,0.00280024,3220.1,3219.6,0.95765414]
[1768821363416,0.00280024,3220.1,3219.6,0.95865414]
[1768821363717,0.00280024,3220.1,3219.8,0.95765414]
[1768821364541,0.00069647,3220.1,3219.8,0.95765414]
[1768821366242,0.00069647,3220.1,3219.7,0.95765414]
[1768821366444,0.00069647,3220.1,3219.8,0.95765414]
[1768821366740,0.00069647,3220.1,3219.9,0.95765414]
[1768821372317,0.00069647,3220.1,3219.6,0.001]
[1768821372318,0.02983014,3220.1,3219.6,0.001]
[1768821374337,0.02913367,3220.0,3219.6,0.001]
[1768821374916,0.51580016,3220.4,3219.6,0.001]
[1768821374917,0.00280016,3220.4,3220.0,0.95765414]
[1768821376826,0.51580016,3220.4,3220.0,0.95765414]
[1768821378059,0.02913367,3220.3,3219.9,0.001]
[1768821379450,2.65061278,3220.8,3219.9,0.001]
[1768821379754,0.513,3220.4,3220.3,0.00080024]
[1768821382433,4.63157331,3220.3,3219.7,0.00080032]
[1768821382929,7.73691239,3220.3,3219.7,0.00080032]
[1768821384459,10.84225147,3220.3,3219.7,0.00080032]
[1768821385537,4.63157331,3220.0,3219.3,0.97857188]
[1768821385732,0.97623736,3219.9,3219.3,0.00080008]
[1768821388542,3.10578296,3219.8,3219.3,0.00080008]
[1768821389070,0.97623736,3219.9,3219.3,0.00080008]
[1768821389860,0.97623736,3219.9,3219.3,0.97857188]
[1768821390335,4.08192458,3219.9,3219.3,0.97857188]
[1768821390736,0.40819246,3219.8,3219.3,0.97857188]
[1768821391738,3.51400427,3219.8,3219.3,0.97857188]
[1768821392170,0.40819246,3219.8,3219.3,0.97857188]
[1768821393547,3.51399636,3219.8,3219.3,0.00080008]
[1768821393752,0.40819246,3219.8,3219.3,0.00080008]
[1768821393953,3.51398913,3219.8,3219.3,0.00080008]
[1768821394372,0.40819246,3219.8,3219.3,0.00080008]
[1768821394895,0.40819246,3219.8,3219.3,0.97857188]
[1768821395942,3.51403049,3219.8,3219.3,0.97857188]
[1768821396161,0.40819246,3219.8,3219.3,0.97857188]
[1768821398173,0.00280024,3220.4,3219.8,0.9777718]
[1768821398746,0.002,3220.1,3219.8,0.9777718]
[1768821405482,0.002,3220.1,3219.9,0.92361056]
[1768821410294,0.00280024,3220.4,3220.0,0.92361056]
[1768821412898,0.51580024,3220.4,3220.0,0.92361056]
[1768821415169,1.44179302,3220.4,3220.0,0.92361056]
[1768821418604,0.51580024,3220.4,3220.0,0.92361056]
[1768821418781,0.513,3220.5,3220.2,0.92592577]
[1768821421228,0.513,3220.6,3220.2,0.92592577]
[1768821421834,0.002,3220.4,3220.2,0.92592577]
[1768821422035,0.002,3220.4,3220.3,0.92592577]
[1768821424123,0.00080024,3220.7,3220.3,0.92592577]
[1768821424818,0.00280016,3221.0,3220.4,0.92592577]
[1768821427020,0.00280016,3221.0,3220.5,0.92592577]
[1768821429704,0.92959318,3221.0,3220.5,0.92592577]
[1768821433432,0.92959318,3221.0,3220.7,0.001]
[1768821434230,0.92959318,3221.0,3220.3,0.92672609]
[1768821434527,0.00280016,3221.0,3220.3,0.92672609]
[1768821434696,0.92959318,3221.0,3220.4,1.32913746]
[1768821434995,0.92959318,3221.0,3220.4,0.92592577]
[1768821439833,0.92679302,3220.9,3220.3,0.00080032]
[1768821440033,0.92679302,3220.7,3220.3,0.00080032]
[1768821443037,0.92347131,3220.6,3220.3,0.00080032]
[1768821443421,0.92347131,3220.5,3220.3,0.00080032]
[1768821447343,0.512,3220.4,3220.3,0.00080032]
[1768821447954,1.43547131,3220.4,3220.3,0.00080032]
[1768821449245,0.512,3220.4,3220.3,0.00080032]
[1768821451463,0.512,3220.4,3220.0,0.00080032]
[1768821451464,1.43547131,3220.4,3220.0,0.00080032]
[1768821452986,0.512,3220.4,3220.0,0.00080032]
[1768821453279,0.92347131,3220.3,3220.0,0.00080032]
[1768821454529,1.07181339,3220.4,3220.0,0.00080032]
[1768821454750,0.512,3220.4,3220.0,0.00080032]
[1768821455033,1.43547131,3220.4,3220.0,0.00080032]
[1768821457062,1.43547131,3220.4,3220.3,0.001]
[1768821457240,1.43547131,3220.4,3220.0,0.00080032]
[1768821457969,1.55589161,3223.0,3220.0,0.00080032]
[1768821457970,0.92427147,3221.3,3220.1,0.96687011]
[1768821458270,0.92347131,3221.2,3220.4,0.96687011]
[1768821458451,0.51380016,3221.3,3220.6,0.96687011]
[1768821458649,0.51380016,3221.3,3220.7,0.96687011]
[1768821460877,0.00080016,3221.3,3220.7,0.96687011]
[1768821462103,0.00080016,3221.3,3220.8,0.97231131]
[1768821462902,0.00080016,3221.3,3220.9,0.97231131]
[1768821465087,0.00080016,3221.3,3221.0,0.97231131]
[1768821465290,0.00080016,3221.3,3221.1,0.97231131]
[1768821466480,0.0182839,3221.6,3221.1,0.97231131]
[1768821466684,0.005,3221.7,3221.2,0.97231131]
[1768821466895,0.00080008,3221.8,3221.3,0.97231131]
[1768821469104,0.002,3221.4,3221.3,0.97231131]
[1768821469306,0.002,3221.7,3221.3,0.97231131]
[1768821470386,20.04627297,3222.0,3221.5,0.97231131]
[1768821470589,0.9869922,3222.3,3221.7,0.00080008]
[1768821471275,1.4969922,3222.2,3221.7,0.97311139]
[1768821471488,0.9849922,3222.1,3221.7,0.97311139]
[1768821472909,0.512,3222.2,3221.7,0.97311139]
[1768821473212,0.512,3222.2,3221.7,0.00080008]
[1768821473380,0.9473047,3222.1,3221.7,0.00080008]
[1768821473775,0.512,3222.2,3221.8,0.9290271]
[1768821474178,0.512,3222.2,3222.1,0.01630314]
[1768821474601,0.002,3222.3,3222.1,0.94533024]
[1768821475595,0.9493047,3222.3,3222.1,0.01630314]
[1768821475802,0.9493047,3222.3,3221.7,0.00080008]
[1768821476008,0.9493047,3222.3,3221.7,0.92982718]
[1768821477016,0.9493047,3222.3,3221.8,0.9290271]
[1768821477193,0.9493047,3222.3,3221.7,0.00080008]
[1768821479345,0.9493047,3222.3,3221.7,0.92982718]
[1768821479478,0.9473047,3222.1,3221.7,0.00080008]
[1768821479682,0.9473047,3221.9,3221.7,0.00080008]
[1768821482922,0.9504347,3221.9,3221.7,0.00080008]
[1768821488621,0.9473047,3221.8,3221.7,0.00080008]
[1768821489189,0.9504347,3221.9,3221.7,0.00080008]
[1768821490787,0.9473047,3221.8,3221.7,0.00080008]
[1768821491190,1.4593047,3221.8,3221.7,0.00080008]
[1768821492311,1.91591477,3221.8,3221.7,0.00080008]
[1768821493718,0.9473047,3221.7,3221.4,0.00080016]
[1768821501615,1.4593047,3221.8,3221.4,0.92982726]
[1768821502930,4.56317521,3221.8,3221.4,0.92982726]
[1768821503103,4.56317521,3221.8,3221.4,0.00080016]
[1768821504136,0.99741847,3221.7,3221.4,0.00080016]
[1768821505706,0.99741847,3221.7,3221.1,0.90187969]
[1768821506013,0.99741847,3221.7,3220.9,0.90267993]
[1768821506398,0.99741847,3221.5,3220.9,0.90267993]
[1768821510427,4.10158086,3221.5,3220.9,0.90267993]
[1768821510838,0.99741847,3221.4,3220.9,0.90267993]
[1768821511507,0.99741847,3221.3,3220.9,0.00080024]
[1768821516510,0.99741847,3221.3,3221.2,0.001]
[1768821517147,1.45878944,3221.3,3221.2,0.001]
[1768821519150,4.56312619,3221.3,3220.9,0.00080024]
[1768821519339,4.10175522,3221.3,3220.9,0.00080024]
[1768821519844,0.94051293,3221.2,3220.9,0.00080024]
[1768821520828,3.10433675,3221.3,3221.0,0.98683928]
[1768821521015,3.6162846,3221.4,3221.0,0.98683928]
[1768821521215,4.55679753,3221.4,3220.9,0.00080024]
[1768821521551,4.55679753,3221.4,3220.9,0.98763952]
[1768821522546,0.94051293,3221.3,3220.9,0.98763952]
[1768821523349,3.10443313,3221.2,3220.9,0.98763952]
[1768821524344,0.512,3221.6,3220.9,0.00080024]
[1768821525045,1.45251293,3221.6,3221.0,0.31055829]
[1768821525249,0.94051293,3221.5,3220.9,0.00080024]
[1768821526948,0.94051293,3221.4,3220.9,0.00080024]
[1768821529254,0.94051293,3221.1,3220.3,0.0018004]
[1768821529548,0.94051293,3221.1,3219.7,3.10666449]